[Event "European Women Blitz-ch 2024"]
[Site "Monaco"]
[Date "2025.01.10"]
[Round "13.18"]
[White "Kanyamarala, Trisha"]
[Black "Agrest, Inna"]
[Result "1-0"]
[Annotator "TA"]
[ECO "D33"]
[WhiteElo "2158"]
[BlackElo "2159"]
[PlyCount "205"]
[EventDate "2025.01.06"]
[EventType "swiss"]
[EventCountry "MNC"]
[SourceTitle "playchess.com"]
[Source "ChessBase"]
[SourceQuality "1"]
[TimeControl "180+2"]

{[%evp 16,205,39,32,29,20,28,42,25,47,75,75,79,83,70,60,98,93,87,41,91,57,66,0,90,24,94,69,71,68,67,69,69,63,75,67,68,37,63,14,24,0,0,-57,0,-322,67,64,71,65,102,95,79,76,84,0,77,13,14,7,48,15,8,9,18,18,29,5,4,0,8,0,0,0,153,161,149,154,172,160,171,166,220,217,263,263,263,-108,262,0,275,192,196,181,187,138,172,137,137,137,137,137,293,137,137,137,189,137,145,0,190,197,191,0,160,0,160,0,162,147,160,0,160,0,168,158,206,170,177,179,199,199,295,291,491,483,491,491,491,463,670,0,458,0,477,475,466,466,452,350,352,352,352,352,576,366,525,525,525,488,476,468,460,433,563,558,555,512,514,514,474,0,462,460,612,612,682,620,613,613,613,613,584,497,1279,1132,2172,2286,4694,4133,29988,29989]} 1. d4 {[%emt 0:00:02]} d5 {[%emt 0:00:01]} 2. c4 {[%emt 0:00:01]} e6 {[%emt 0:00:02]} 3. Nf3 {[%emt 0:00:01]} c5 {[%emt 0:00:01]} 4. cxd5 {[%emt 0:00:02]} exd5 {[%emt 0:00:01]} 5. Nc3 {[%emt 0:00:01]} Nf6 {[%emt 0:00:06]} 6. g3 {[%emt 0:00:01]} Nc6 {[%emt 0:00:06]} 7. Bg2 {[%emt 0:00:02][%cal Bf1g2,Bg2d5,Bd5e4][%mdl 32]} cxd4 {[%emt 0:00:13]} 8. Nxd4 {[%emt 0:00:01]} Bc5 {[%emt 0:00:02]} 9. Nb3 {[%emt 0:00:11][%csl LRc5,LRd5]} Bb6 {[%emt 0:00:01]} 10. Nxd5 {[%emt 0:00:51]} Nxd5 {[%emt 0:00:01]} 11. Qxd5 {[%emt 0:00:31]} Qxd5 {[%emt 0:00:11]} 12. Bxd5 {[%emt 0:00:02]} Nb4 {[%emt 0:00:01]} 13. Be4 {[%emt 0:00:01]} f5 {[%emt 0:00:05]} 14. Bb1 {[%emt 0:00:01]} Be6 {[%emt 0:00:10]} 15. Bd2 {[%emt 0:00:09]} Nc6 {[%emt 0:00:10]} 16. Bc3 {[%emt 0:00:36]} O-O {[%emt 0:00:02]} 17. O-O {[%emt 0:00:15]} (17. e3 $16) 17... a5 {[%emt 0:00:01]} (17... f4 $14) 18. Bd3 {[%emt 0:00:06]} Nb4 {[%emt 0:00:10]} 19. Bb1 {[%emt 0:00:25]} Nc6 $1 {[%emt 0:00:03]} 20. Rd1 {[%emt 0:00:08]} (20. e3 $16) 20... Rfd8 {[%emt 0:00:16]} (20... f4 $1 $11) 21. Bc2 {[%emt 0:00:01]} Nb4 {[%emt 0:00:13]} 22. Bxb4 {[%emt 0:00:07]} axb4 {[%emt 0:00:01]} 23. Rxd8+ {[%emt 0:00:07]} Rxd8 {[%emt 0:00:03]} 24. Rd1 {[%emt 0:00:02]} Rc8 {[%emt 0:00:06]} 25. Bd3 {[%emt 0:00:05]} Kf7 {[%emt 0:00:11]} 26. Kg2 {[%emt 0:00:00]} g6 {[%emt 0:00:01]} 27. f3 {[%emt 0:00:01]} (27. Bb1 $14 {is more appropriate.}) 27... Be3 $11 {[%emt 0:00:04]} 28. Re1 {[%emt 0:00:01]} Ra8 {[%emt 0:00:03]} 29. Nc1 {[%emt 0:00:03]} (29. Bb1 $1 $11) 29... Ke7 {[%emt 0:00:07]} (29... b3 $1 $15 30. Nxb3 Rxa2) 30. b3 $2 {[%emt 0:00:01][%mdl 8192]} (30. Bb1 $11) 30... Kd6 $2 {[%emt 0:00:08]} (30... Rc8 $1 $19 31. Bc4 Bd2 (31... Bxc4 32. bxc4 Rxc4 33. Nd3 $15)) 31. Bb1 $14 {[%emt 0:00:01]} Ke7 {[%emt 0:00:06]} 32. Nd3 {[%emt 0:00:00]} Bd2 {[%emt 0:00:10]} 33. Rd1 {[%emt 0:00:01]} Bc3 {[%emt 0:00:01]} 34. Nf4 {[%emt 0:00:01]} Ra5 {[%emt 0:00:13]} 35. Nd3 {[%emt 0:00:06]} (35. Kf2 $16) 35... Rd5 {[%emt 0:00:07] [#]} (35... Ra8 $1 $11) 36. e4 {[%emt 0:00:01]} (36. Nf2 $1 $16) 36... fxe4 $11 {[%emt 0:00:10]} 37. fxe4 {[%emt 0:00:11]} Ra5 {[%emt 0:00:01]} 38. h3 {[%emt 0:00:00]} g5 {[%emt 0:00:08]} 39. Ne1 {[%emt 0:00:00]} h6 {[%emt 0:00:06]} 40. Nf3 {[%emt 0:00:00]} Ra8 {[%emt 0:00:14]} 41. Ng1 {[%emt 0:00:03]} Rc8 {[%emt 0:00:08]} 42. Ne2 {[%emt 0:00:01]} Be5 {[%emt 0:00:01]} 43. Ng1 {[%emt 0:00:04]} Rc3 {[%emt 0:00:10]} 44. Ne2 {[%emt 0:00:02]} Re3 $2 {[%emt 0:00:02]} (44... Rc8 $11) 45. Kf2 $16 {[%emt 0:00:00]} Rxe2+ {[%emt 0:00:03]} 46. Kxe2 {[%emt 0:00:02]} Bxg3 $18 {[%emt 0:00:01][%mdl 4096] Endgame KRB-KB} 47. Rd3 {[%emt 0:00:03]} Be5 {[%emt 0:00:02]} 48. Bc2 {[%emt 0:00:02]} h5 {[%emt 0:00:03]} (48... Bd7 $142) 49. Kf2 {[%emt 0:00:01]} h4 {[%emt 0:00:03]} 50. Bd1 {[%emt 0:00:02]} Bd7 {[%emt 0:00:04]} 51. Bf3 $2 {[%emt 0:00:03]} (51. Bg4 $18 Bc6 52. Kf3) 51... Bf4 $2 {[%emt 0:00:04][%mdl 8192] A strong pair of Bishops.} (51... Bxh3 $17 {Strongly threatening ...Be6.} 52. Rd5 Kf6) 52. Rd1 $2 {[%emt 0:00:01]} (52. Kg2 $18) 52... Bb5 $2 {[%emt 0:00:01][%mdl 8192]} (52... Bxh3 $11 53. Rd4 Bd7) 53. Be2 {[%emt 0:00:01]} Bc6 {[%emt 0:00:01]} 54. Kf3 {[%emt 0:00:02]} Ke6 {[%emt 0:00:01]} 55. Bc4+ {[%emt 0:00:01]} (55. Rd4 $18) 55... Ke7 {[%emt 0:00:02]} 56. Bd5 {[%emt 0:00:02]} Bd7 {[%emt 0:00:01]} 57. Rh1 {[%emt 0:00:03]} (57. Bxb7 $6 Bxh3 58. Rh1 Bd7 $11) 57... b6 {[%emt 0:00:02]} 58. Bc4 {[%emt 0:00:04]} Kd6 $2 {[%emt 0:00:07]} (58... Kf6 $16 59. Kg2 Bc6) 59. Rd1+ {[%emt 0:00:02]} (59. Bf7 $18 {has better winning chances.}) 59... Ke7 $16 {[%emt 0:00:01]} 60. Bf1 {[%emt 0:00:01]} Be6 {[%emt 0:00:04]} (60... Bg3 $16 61. Rd5 Bf4) 61. Bg2 {[%emt 0:00:02]} (61. Rd4 $18) 61... Be5 {[%emt 0:00:01]} 62. Bf1 {[%emt 0:00:02]} Bf4 $1 {[%emt 0:00:03]} 63. Rd4 {[%emt 0:00:02]} Bd6 {[%emt 0:00:02]} 64. Rd1 {[%emt 0:00:02]} Bf4 $1 {[%emt 0:00:02]} 65. Bg2 {[%emt 0:00:01]} Be5 {[%emt 0:00:01]} 66. Bf1 {[%emt 0:00:02]} Bf4 $1 {[%emt 0:00:01]} 67. Re1 {[%emt 0:00:03]} Be5 {[%emt 0:00:01]} 68. Rd1 {[%emt 0:00:02]} Bf4 $1 {[%emt 0:00:02]} 69. Bg2 {[%emt 0:00:02]} Be5 {[%emt 0:00:01]} 70. Rc1 {[%emt 0:00:03]} Kd7 {[%emt 0:00:03] Dodges Rc6} (70... Bd7 $16 71. Rd1 Be6) 71. Bf1 {[%emt 0:00:02]} Bf4 {[%emt 0:00:04]} 72. Rc2 {[%emt 0:00:01]} Be5 {[%emt 0:00:02]} 73. Kg2 {[%emt 0:00:01]} Ke7 {[%emt 0:00:02]} (73... g4) 74. Be2 {[%emt 0:00:01]} Bf4 $2 {[%emt 0:00:02]} (74... Bc3 75. Rc1 Bg8) 75. Bg4 {[%emt 0:00:01]} Bf7 {[%emt 0:00:01]} 76. Rc6 {[%emt 0:00:03]} Be3 {[%emt 0:00:03]} 77. Rc7+ {[%emt 0:00:02]} Kf6 {[%emt 0:00:02]} (77... Kf8 $142 78. Kf3 Bc5) 78. Rc6+ {[%emt 0:00:02]} Ke7 $1 {[%emt 0:00:01]} 79. Rc7+ $2 {[%emt 0:00:02]} (79. Bf5 $18) 79... Kf8 $2 {[%emt 0:00:02][%mdl 8192]} (79... Kf6 $1 $11 80. e5+ Kxe5 81. Rxf7 Bf4) 80. e5 $18 {[%emt 0:00:02]} Bf4 {[%emt 0:00:02]} 81. Rc8+ {[%emt 0:00:01]} Ke7 {[%emt 0:00:01]} 82. Rb8 {[%emt 0:00:05]} Bxe5 {[%emt 0:00:02]} 83. Rb7+ {[%emt 0:00:01]} (83. Rxb6 Bd6 84. Rb5 Kf6 85. Rf5+ Kg6 $18) 83... Kf8 {[%emt 0:00:01]} 84. Rxb6 {[%emt 0:00:01]} Bd5+ $2 {[%emt 0:00:02]} (84... Bc3 85. Rb5 Bd2) 85. Kf1 {[%emt 0:00:02]} Bf4 {[%emt 0:00:02]} (85... Bc3 {was necessary.} 86. Rb5 Be4 87. Rxg5 Kf7) 86. Rxb4 {[%emt 0:00:03]} Ke7 {[%emt 0:00:02]} 87. Ra4 {[%emt 0:00:03]} Kd6 {[%emt 0:00:01]} 88. Ra6+ {[%emt 0:00:03]} Kc5 {[%emt 0:00:01]} 89. Ra5+ {[%emt 0:00:02]} Kd6 {[%emt 0:00:01]} 90. b4 {[%emt 0:00:02]} Bd2 {[%emt 0:00:04]} 91. a3 {[%emt 0:00:00]} Be3 {[%emt 0:00:05]} 92. Ra6+ {[%emt 0:00:02]} Ke5 {[%emt 0:00:01]} 93. Ra5 $2 {[%emt 0:00:03]} ({Better is} 93. b5 $18) 93... Kd4 $2 {[%emt 0:00:02][%mdl 8192]} (93... Kd6 $1 $11 {and Black stays safe.}) 94. Be2 {[%emt 0:00:03]} Be6 {[%emt 0:00:02] [#]} 95. Kg2 $1 {[%emt 0:00:01]} Bd5+ {[%emt 0:00:03]} 96. Bf3 {[%emt 0:00:01]} Bc4 {[%emt 0:00:02]} 97. Rc5 {[%emt 0:00:01]} Bc1 {[%emt 0:00:05]} 98. a4 {[%emt 0:00:02]} Bd2 {[%emt 0:00:02]} 99. Rf5 {[%emt 0:00:05] Black must now prevent b5.} Bf4 {[%emt 0:00:06]} (99... g4 $142 100. hxg4 (100. Bxg4 Bxb4 101. Bf3 Be7 $18) 100... Bxb4) 100. b5 {[%emt 0:00:01][%cal Bb4b5,Bb5b6,Bb6b7][%mdl 32]} Kc3 {[%emt 0:00:00]} 101. b6 {[%emt 0:00:02][%cal Of5f4]} Ba6 {[%emt 0:00:00]} 102. b7 {[%emt 0:00:02][%cal Of5f4] White threatens Rxf4! and mate.} Bc4 {[%emt 0:00:02] [#]} 103. Rxf4 $1 {[%emt 0:00:02]} 1-0